[Event "Djerba Festival Open-A 2024"]
[Site "Djerba"]
[Date "2024.02.24"]
[Round "8.5"]
[White "Dwilewicz, Katarzyna"]
[Black "Domenech, Vianney"]
[Result "0-1"]
[ECO "B06"]
[WhiteElo "2129"]
[BlackElo "2254"]
[Annotator "ChessBase"]
[PlyCount "228"]
[EventDate "2024.02.18"]
[EventType "swiss"]
[EventCountry "TUN"]
[SourceTitle "playchess.com"]
[Source "ChessBase"]
[SourceQuality "1"]
[TimeControl "5400+30"]

1. e4 {[%emt 0:00:52]} g6 {[%emt 0:02:33]} 2. d4 {[%emt 0:00:14]} Bg7 {[%emt 0:00:06]} 3. Nc3 {[%emt 0:00:14]} d6 {[%emt 0:00:34]} 4. Be3 {[%emt 0:00:34]} a6 {[%emt 0:01:00]} 5. Qd2 {[%emt 0:01:38]} b5 {[%emt 0:00:32]} 6. f3 {[%emt 0:03:05]} Nd7 {[%emt 0:01:26]} 7. h4 {[%emt 0:00:59]} h5 {[%emt 0:01:14]} 8. Nh3 {[%emt 0:00:22]} Bb7 {[%emt 0:00:58]} 9. Ng5 {[%emt 0:00:42]} c5 {[%emt 0:02:24]} 10. dxc5 {[%emt 0:08:59]} Nxc5 {[%emt 0:00:16]} 11. Bd4 {[%emt 0:00:53]} e5 {[%emt 0:09:03]} 12. Be3 {[%emt 0:02:50]} Rc8 {[%emt 0:06:14]} 13. Rd1 {[%emt 0:05:33]} Nf6 {[%emt 0:21:41]} 14. Qxd6 {[%emt 0:04:08]} Ncd7 {[%emt 0:00:29]} 15. g3 {[%emt 0:08:30]} Rc6 {[%emt 0:01:05]} 16. Qd2 {[%emt 0:00:52]} Qc7 {[%emt 0:02:29]} 17. Bd3 {[%emt 0:02:54]} O-O {[%emt 0:01:42]} 18. O-O {[%emt 0:00:18]} Nb6 {[%emt 0:01:08]} 19. a3 {[%emt 0:03:15]} Nc4 {[%emt 0:05:30]} 20. Bxc4 {[%emt 0:00:11]} Rxc4 {[%emt 0:00:04]} 21. Qd6 {[%emt 0:01:04]} Qc8 {[%emt 0:00:12]} 22. Rd2 {[%emt 0:01:26]} Ne8 {[%emt 0:03:39]} 23. Qb6 {[%emt 0:06:49]} Rc6 {[%emt 0:01:58]} 24. Qd8 {[%emt 0:01:58]} Nc7 {[%emt 0:09:06]} 25. Qxc8 {[%emt 0:01:27]} Bxc8 {[%emt 0:00:14]} 26. Kg2 {[%emt 0:00:23]} f6 {[%emt 0:01:16]} 27. Nh3 {[%emt 0:00:06]} Be6 {[%emt 0:02:23]} 28. Rfd1 {[%emt 0:00:24]} Rc8 {[%emt 0:01:09]} 29. Nf2 {[%emt 0:03:13]} Bf8 {[%emt 0:00:38]} 30. Nd5 {[%emt 0:06:44]} Kf7 {[%emt 0:01:10]} 31. Nb4 {[%emt 0:01:51]} Rc4 {[%emt 0:01:07]} 32. c3 {[%emt 0:06:57]} a5 {[%emt 0:01:24]} 33. Nd5 {[%emt 0:01:14]} Rc6 {[%emt 0:02:49]} 34. f4 {[%emt 0:09:51]} exf4 {[%emt 0:01:48]} 35. Bxf4 {[%emt 0:03:01]} Na6 {[%emt 0:01:27]} 36. e5 {[%emt 0:01:26]} fxe5 {[%emt 0:01:04]} 37. Bxe5 {[%emt 0:00:02]} Nc5 {[%emt 0:02:57]} 38. Rd4 {[%emt 0:02:16]} Bh6 {[%emt 0:01:19]} 39. Nf4 {[%emt 0:04:32]} Bf5 {[%emt 0:00:26]} 40. Rd8 {[%emt 0:01:34]} Na4 {[%emt 0:02:49]} 41. Rxc8 {[%emt 0:00:28]} Rxc8 {[%emt 0:00:03]} 42. Rd2 {[%emt 0:01:17]} Re8 {[%emt 0:00:22]} 43. Bc7 {[%emt 0:00:18]} Nc5 {[%emt 0:01:48]} 44. Rd5 {[%emt 0:01:22]} Bf8 {[%emt 0:02:35]} 45. Bxa5 {[%emt 0:00:21]} Ne4 {[%emt 0:03:53]} 46. Rxb5 {[%emt 0:00:59]} Bd6 {[%emt 0:00:23]} 47. Rb7+ {[%emt 0:04:19]} Kg8 {[%emt 0:00:04]} 48. Bb4 {[%emt 0:00:58]} Be5 {[%emt 0:02:03]} 49. Re7 {[%emt 0:00:15]} Rxe7 {[%emt 0:00:48]} 50. Bxe7 {[%emt 0:00:01]} Kf7 {[%emt 0:00:23]} 51. Bb4 {[%emt 0:00:24]} Nd2 {[%emt 0:00:15]} 52. N4d3 {[%emt 0:01:27]} Bc7 {[%emt 0:00:26]} 53. a4 {[%emt 0:00:08]} Bd7 {[%emt 0:00:13]} 54. Nc5 {[%emt 0:00:40]} Bc6+ {[%emt 0:00:03]} 55. Kg1 {[%emt 0:00:08]} Bxg3 {[%emt 0:00:45]} 56. a5 {[%emt 0:00:22]} Bxh4 {[%emt 0:00:51]} 57. a6 {[%emt 0:00:16]} Bg5 {[%emt 0:00:50]} 58. Nd1 {[%emt 0:01:09]} h4 {[%emt 0:00:28]} 59. Nd3 {[%emt 0:00:34]} Ke6 {[%emt 0:01:52]} 60. Bc5 {[%emt 0:00:45]} Nf3+ {[%emt 0:00:51]} 61. Kf2 {[%emt 0:00:22]} h3 {[%emt 0:01:00]} 62. Kg3 {[%emt 0:00:09]} h2 {[%emt 0:00:12]} 63. Kg2 {[%emt 0:00:45]} Ne1+ {[%emt 0:00:30]} 64. Kxh2 {[%emt 0:00:06]} Nxd3 {[%emt 0:00:04]} 65. Bd4 {[%emt 0:00:38]} Bf4+ {[%emt 0:00:13]} 66. Kg1 {[%emt 0:00:17]} Kd5 {[%emt 0:01:33]} 67. b3 {[%emt 0:01:04]} g5 {[%emt 0:00:15]} 68. Kg2 {[%emt 0:00:12]} g4 {[%emt 0:00:28]} 69. Bb6 {[%emt 0:00:28]} Kd6+ {[%emt 0:00:37]} 70. Kg1 {[%emt 0:00:12]} Kd7 {[%emt 0:00:25]} 71. c4 {[%emt 0:00:22]} Kc8 {[%emt 0:00:09]} 72. Nc3 {[%emt 0:00:23]} Ne1 {[%emt 0:00:38]} 73. Kf2 {[%emt 0:00:34]} Nd3+ {[%emt 0:00:24]} 74. Kg1 {[%emt 0:00:20]} Be5 {[%emt 0:00:56]} 75. Ne2 {[%emt 0:00:53]} Nb4 {[%emt 0:00:45]} 76. a7 {[%emt 0:00:54]} Kb7 {[%emt 0:00:03]} 77. Be3 {[%emt 0:00:12]} Nc2 {[%emt 0:00:43]} 78. Bc5 {[%emt 0:00:13]} Bf3 {[%emt 0:00:42]} 79. Kf2 {[%emt 0:00:23]} Bxe2 {[%emt 0:00:23]} 80. Kxe2 {[%emt 0:00:01]} Nd4+ {[%emt 0:00:14]} 81. Kd3 {[%emt 0:00:26]} Nxb3 {[%emt 0:00:14]} 82. Bf2 {[%emt 0:00:06]} Bd6 {[%emt 0:01:07]} 83. Ke4 {[%emt 0:00:20]} Nd2+ {[%emt 0:00:59]} 84. Kd3 {[%emt 0:02:10]} Nb3 {[%emt 0:00:12]} 85. Ke4 {[%emt 0:00:09]} g3 {[%emt 0:00:37]} 86. Bxg3 {[%emt 0:00:11]} Bxg3 {[%emt 0:00:05]} 87. Kf3 {[%emt 0:00:05]} Bc7 {[%emt 0:00:10]} 88. c5 {[%emt 0:00:06]} Kxa7 {[%emt 0:00:04]} 89. c6 {[%emt 0:00:02]} Kb6 {[%emt 0:00:05]} 90. Kg2 {[%emt 0:00:04]} Nc5 {[%emt 0:00:03]} 91. Kf3 {[%emt 0:00:04]} Ne6 {[%emt 0:00:04]} 92. Ke4 {[%emt 0:00:06]} Kxc6 {[%emt 0:00:05]} 93. Kf3 {[%emt 0:00:08]} Kd5 {[%emt 0:00:05]} 94. Kg2 {[%emt 0:00:03]} Ke4 {[%emt 0:00:03]} 95. Kh1 {[%emt 0:00:10]} Kf3 {[%emt 0:00:10]} 96. Kg1 {[%emt 0:00:04]} Ng5 {[%emt 0:00:08]} 97. Kh1 {[%emt 0:00:06]} Ne4 {[%emt 0:00:04]} 98. Kg1 {[%emt 0:00:02]} Nf2 {[%emt 0:00:04]} 99. Kf1 {[%emt 0:00:02]} Bh2 {[%emt 0:00:04]} 100. Ke1 {[%emt 0:00:03]} Ne4 {[%emt 0:00:22]} 101. Kf1 {[%emt 0:00:05]} Nd2+ {[%emt 0:00:10]} 102. Ke1 {[%emt 0:00:04]} Ke3 {[%emt 0:00:12]} 103. Kd1 {[%emt 0:00:04]} Kd3 {[%emt 0:00:07]} 104. Ke1 {[%emt 0:00:04]} Bg3+ {[%emt 0:00:03]} 105. Kd1 {[%emt 0:00:04]} Bf2 {[%emt 0:00:03]} 106. Kc1 {[%emt 0:00:02]} Nc4 {[%emt 0:00:05]} 107. Kd1 {[%emt 0:00:13]} Nb2+ {[%emt 0:00:06]} 108. Kc1 {[%emt 0:00:03]} Kc3 {[%emt 0:00:03]} 109. Kb1 {[%emt 0:00:03]} Kb3 {[%emt 0:00:06]} 110. Ka1 {[%emt 0:00:14]} Be3 {[%emt 0:00:10]} 111. Kb1 {[%emt 0:00:01]} Nc4 {[%emt 0:00:11]} 112. Ka1 {[%emt 0:00:04]} Bf4 {[%emt 0:00:06]} 113. Kb1 {[%emt 0:00:04]} Na3+ {[%emt 0:00:03]} 114. Ka1 {[%emt 0:00:04]} Be5# {[%emt 0:00:03]} 0-1

[Event "Djerba Festival Open-A 2024"]
[Site "Djerba"]
[Date "2024.02.24"]
[Round "8.6"]
[White "Kadi, Mohamed El Mouldi"]
[Black "Eden, James"]
[Result "0-1"]
[ECO "B63"]
[WhiteElo "2067"]
[BlackElo "2319"]
[Annotator "TA"]
[PlyCount "69"]
[EventDate "2024.02.18"]
[EventType "swiss"]
[EventCountry "TUN"]
[SourceTitle "playchess.com"]
[Source "ChessBase"]
[SourceQuality "1"]
[TimeControl "5400+30"]

{[%evp 18,69,-37,-41,-21,-37,-33,-31,-56,-48,-48,-102,-88,-97,-99,-138,-143,-143,-141,-139,-140,-143,-148,-144,-144,-177,-177,-176,-176,-176,-169,-166,-152,-169,-161,-180,-154,-419,-464,-420,-408,-1034,-881,-1154,-1004,-1077,-981,-1556,-1483,-1791,-1595,-4424,-1910,-1831]} 1. e4 {[%emt 0:05:43]} c5 {[%emt 0:00:36]} 2. Nf3 {[%emt 0:00:07]} d6 {[%emt 0:00:11]} 3. d4 {[%emt 0:00:08]} cxd4 {[%emt 0:00:11]} 4. Nxd4 {[%emt 0:00:02]} Nf6 {[%emt 0:00:11]} 5. Nc3 {[%emt 0:00:03]} Nc6 {[%emt 0:00:09]} 6. Bg5 {[%emt 0:00:18]} e6 {[%emt 0:00:11]} 7. Qd2 {[%emt 0:00:26]} Be7 {[%emt 0:00:16]} 8. Be2 {[%emt 0:02:28]} O-O {[%emt 0:01:52]} 9. O-O-O {[%emt 0:01:04]} Nxd4 {[%emt 0:07:34]} 10. Qxd4 {[%emt 0:00:06] [#]} Nxe4 $1 {[%emt 0:00:16]} 11. Nxe4 {[%emt 0:06:39] Droht stark Bxe7.} Bxg5+ {[%emt 0:02:13]} 12. Nxg5 {[%emt 0:01:38]} Qxg5+ {[%emt 0:00:11] Schwarz steht etwas besser.} 13. f4 {[%emt 0:00:02]} Qa5 {[%emt 0:00:45]} 14. Qxd6 {[%emt 0:07:08]} (14. Kb1 $15 Bd7 15. Qxd6) 14... Qxa2 $17 {[%emt 0:01:01]} 15. Qb4 {[%emt 0:12:27] [#] Bc4 wäre nun fies.} Bd7 $1 {[%emt 0:02:10]} 16. Qa3 {[%emt 0:03:10]} (16. Bc4 Qa1+) 16... Qxa3 {[%emt 0:00:13]} 17. bxa3 {[%emt 0:00:00]} Bc6 {[%emt 0:00:20]} 18. Rhg1 {[%emt 0:00:02]} Rfd8 {[%emt 0:00:21]} 19. g3 {[%emt 0:00:31]} Kf8 {[%emt 0:00:37]} 20. Rxd8+ {[%emt 0:00:38]} Rxd8 {[%emt 0:00:09]} 21. Rd1 {[%emt 0:00:01]} Rxd1+ {[%emt 0:00:42]} 22. Kxd1 $19 {[%emt 0:00:39][%mdl 4096] Endspiel. KB-KB} Ke7 {[%emt 0:00:22]} 23. Kd2 {[%emt 0:00:44]} Kd6 {[%emt 0:00:23]} 24. Ke3 {[%emt 0:00:28]} Kc5 {[%emt 0:00:26]} 25. Bd3 {[%emt 0:01:25]} h6 {[%emt 0:00:38]} 26. Kd2 {[%emt 0:04:54]} b5 {[%emt 0:00:55] Und jetzt ...b4 wäre schön.} 27. Kc3 {[%emt 0:01:07]} (27. c3 $17) 27... a5 {[%emt 0:00:20]} 28. Be2 {[%emt 0:01:07]} Bd5 {[%emt 0:00:10]} 29. Bf1 {[%emt 0:01:02]} (29. Kb2 $142 Bc4 30. Bg4) 29... b4+ {[%emt 0:00:18] Schwarz steht klar auf Gewinn.} 30. axb4+ {[%emt 0:00:06]} axb4+ {[%emt 0:00:08]} 31. Kd2 {[%emt 0:00:13]} Kd4 {[%emt 0:00:12]} 32. Be2 {[%emt 0:03:33]} f6 {[%emt 0:00:26] Weiss muss nun ...e5 beachten.} 33. Bf1 {[%emt 0:06:17]} e5 {[%emt 0:00:27]} 34. fxe5 {[%emt 0:06:23]} fxe5 {[%emt 0:00:09] ...e4 ist eine echte Drohung.} 35. Ke1 {[%emt 0:02:06] Schwarz nahm nach der Eröffnung die Zügel in die Hand.   Gewichteter Fehlerwert: Weiß=1.00/Schwarz=0.02 (makellos) .  Verlustzug:     	Weiß=1     	---        Fehler:       	Weiß=2     	---        Ungenau:       	Weiß=2     	---        OK:         	Weiß=3     	Schwarz=11    Bester:       	---       	Schwarz=2} 0-1

[Event "Djerba Festival Open-A 2024"]
[Site "Djerba"]
[Date "2024.02.24"]
[Round "8.7"]
[White "Marin, Sam"]
[Black "Taieb, Sahbi"]
[Result "1/2-1/2"]
[ECO "A37"]
[WhiteElo "2014"]
[BlackElo "2085"]
[Annotator "NA"]
[PlyCount "107"]
[EventDate "2024.02.18"]
[EventType "swiss"]
[EventCountry "TUN"]
[SourceTitle "playchess.com"]
[Source "ChessBase"]
[SourceQuality "1"]
[TimeControl "5400+30"]

1. c4 {[%emt 0:04:38]} c5 {[%emt 0:04:08]} 2. Nc3 {[%emt 0:00:09]} Nc6 {[%emt 0:00:04]} 3. g3 {[%emt 0:00:15]} g6 {[%emt 0:00:03]} 4. Bg2 {[%emt 0:00:11]} Bg7 {[%emt 0:00:05]} 5. Nf3 {[%emt 0:00:26]} e5 {[%emt 0:01:01]} 6. O-O {[%emt 0:00:17]} Nge7 {[%emt 0:00:04]} 7. d3 {[%emt 0:00:35]} O-O {[%emt 0:00:11]} 8. Ne1 {[%emt 0:01:06]} d6 {[%emt 0:00:42]} 9. Rb1 {[%emt 0:01:42]} Bg4 {[%emt 0:04:37]} 10. h3 {[%emt 0:01:09]} Be6 {[%emt 0:00:05]} 11. Nc2 {[%emt 0:00:36]} d5 {[%emt 0:04:06]} 12. cxd5 {[%emt 0:01:44]} Nxd5 {[%emt 0:02:28]} 13. Ne3 {[%emt 0:00:24]} Nde7 {[%emt 0:04:24]} 14. a3 {[%emt 0:01:02]} Qd7 {[%emt 0:00:30]} 15. Kh2 {[%emt 0:00:39]} f5 {[%emt 0:02:03]} 16. b4 {[%emt 0:07:43]} cxb4 {[%emt 0:04:50]} 17. axb4 {[%emt 0:02:04]} Rac8 {[%emt 0:01:47]} 18. Bd2 {[%emt 0:06:03]} Rfd8 {[%emt 0:13:35]} 19. b5 {[%emt 0:04:57]} Nd4 {[%emt 0:05:12]} 20. Qa4 {[%emt 0:03:22]} b6 {[%emt 0:05:09]} 21. Ned1 {[%emt 0:12:43]} Bf7 {[%emt 0:07:42]} 22. Bg5 {[%emt 0:06:59]} h6 {[%emt 0:01:54]} 23. Bxe7 {[%emt 0:00:21]} Qxe7 {[%emt 0:00:09]} 24. e3 {[%emt 0:01:06]} Ne6 {[%emt 0:00:47]} 25. Nd5 {[%emt 0:00:22]} Qd7 {[%emt 0:02:31]} 26. N1c3 {[%emt 0:05:46]} e4 {[%emt 0:08:19]} 27. Qa3 {[%emt 0:12:15]} exd3 {[%emt 0:15:44]} 28. Ne7+ {[%emt 0:00:19]} Kh7 {[%emt 0:00:07]} 29. Nxc8 {[%emt 0:00:13]} Qxc8 {[%emt 0:01:33]} 30. Nd5 {[%emt 0:06:15]} Nc5 {[%emt 0:03:11]} 31. Ne7 {[%emt 0:00:40]} Qc7 {[%emt 0:01:54]} 32. Nc6 {[%emt 0:00:12]} Rd6 {[%emt 0:00:14]} 33. Nxa7 {[%emt 0:13:13]} Ne4 {[%emt 0:02:14]} 34. Rbc1 {[%emt 0:01:50]} Qd7 {[%emt 0:01:10]} 35. Nc8 {[%emt 0:03:21]} d2 {[%emt 0:00:54]} 36. Nxd6 {[%emt 0:01:03]} dxc1=Q {[%emt 0:00:27]} 37. Rxc1 {[%emt 0:00:11]} Qxd6 {[%emt 0:02:22]} 38. Qxd6 {[%emt 0:01:42]} Nxd6 {[%emt 0:00:01]} 39. Rc6 {[%emt 0:00:20]} Nxb5 {[%emt 0:00:06]} 40. Rxb6 {[%emt 0:00:08]} Nc3 {[%emt 0:00:10]} 41. Rb7 {[%emt 0:00:14]} Bg8 {[%emt 0:01:25]} 42. g4 {[%emt 0:00:45]} Be6 {[%emt 0:02:46]} 43. Re7 {[%emt 0:00:34]} Ba2 {[%emt 0:00:21]} 44. gxf5 {[%emt 0:00:33]} gxf5 {[%emt 0:00:01]} 45. Bc6 {[%emt 0:01:40]} Kg6 {[%emt 0:00:21]} 46. Be8+ {[%emt 0:00:13]} Kf6 {[%emt 0:00:55]} 47. Ra7 {[%emt 0:00:35]} Bf8 {[%emt 0:00:38]} 48. Ra6+ {[%emt 0:00:32]} Kg7 {[%emt 0:00:50]} 49. Bh5 {[%emt 0:00:52]} Bd5 {[%emt 0:00:14]} 50. Rg6+ {[%emt 0:00:21]} Kh7 {[%emt 0:00:08]} 51. Rf6 {[%emt 0:00:23]} Be7 {[%emt 0:01:08]} 52. Rxf5 {[%emt 0:00:15]} Be6 {[%emt 0:00:15]} 53. Ra5 {[%emt 0:02:02]} Bd6+ {[%emt 0:01:25]} 54. f4 {[%emt 0:00:30]} 1/2-1/2

[Event "Djerba Festival Open-A 2024"]
[Site "Djerba"]
[Date "2024.02.24"]
[Round "8.8"]
[White "Nassr, Lina"]
[Black "Alhassadi, Yousef A."]
[Result "1/2-1/2"]
[ECO "D05"]
[WhiteElo "2051"]
[BlackElo "2011"]
[Annotator "NA"]
[PlyCount "72"]
[EventDate "2024.02.18"]
[EventType "swiss"]
[EventCountry "TUN"]
[SourceTitle "playchess.com"]
[Source "ChessBase"]
[SourceQuality "1"]
[TimeControl "5400+30"]

1. d4 {[%emt 0:00:09]} d5 {[%emt 0:00:07]} 2. Nf3 {[%emt 0:00:05]} e6 {[%emt 0:00:07]} 3. e3 {[%emt 0:00:41]} c5 {[%emt 0:00:18]} 4. Be2 {[%emt 0:01:07]} Nc6 {[%emt 0:00:57]} 5. b3 {[%emt 0:03:02]} cxd4 {[%emt 0:02:00]} 6. exd4 {[%emt 0:00:24]} Nf6 {[%emt 0:00:10]} 7. O-O {[%emt 0:01:05]} Bd6 {[%emt 0:00:06]} 8. Bb2 {[%emt 0:00:43]} O-O {[%emt 0:00:19]} 9. Re1 {[%emt 0:04:33]} Ne4 {[%emt 0:04:24]} 10. Nbd2 {[%emt 0:06:21]} Bb4 {[%emt 0:14:03]} 11. Bd3 {[%emt 0:15:46]} f5 {[%emt 0:03:59]} 12. Rf1 {[%emt 0:16:26]} Qf6 {[%emt 0:20:26]} 13. Nb1 {[%emt 0:06:59]} Bd6 {[%emt 0:01:24]} 14. Bb5 {[%emt 0:10:05]} Nb8 {[%emt 0:25:25]} 15. Ne5 {[%emt 0:13:26]} a6 {[%emt 0:00:09]} 16. Bd3 {[%emt 0:00:45]} Nc6 {[%emt 0:00:18]} 17. f4 {[%emt 0:11:06]} g5 {[%emt 0:02:09]} 18. Bxe4 {[%emt 0:01:40]} fxe4 {[%emt 0:01:25]} 19. fxg5 {[%emt 0:03:21]} Qxg5 {[%emt 0:02:34]} 20. Qg4 {[%emt 0:00:46]} Rxf1+ {[%emt 0:01:04]} 21. Kxf1 {[%emt 0:00:01]} Qxg4 {[%emt 0:00:08]} 22. Nxg4 {[%emt 0:00:03]} Kg7 {[%emt 0:02:40]} 23. g3 {[%emt 0:00:24]} h5 {[%emt 0:04:52]} 24. Ne3 {[%emt 0:00:20]} Bd7 {[%emt 0:02:07]} 25. Nd2 {[%emt 0:00:56]} Be7 {[%emt 0:02:15]} 26. Ke2 {[%emt 0:01:37]} Bf6 {[%emt 0:00:27]} 27. c3 {[%emt 0:00:59]} Ne7 {[%emt 0:02:17]} 28. Rg1 {[%emt 0:00:41]} Kg6 {[%emt 0:01:43]} 29. Ba3 {[%emt 0:00:33]} Rc8 {[%emt 0:00:55]} 30. g4 {[%emt 0:00:39]} Rxc3 {[%emt 0:01:03]} 31. gxh5+ {[%emt 0:00:36]} Kxh5 {[%emt 0:00:28]} 32. Bxe7 {[%emt 0:00:29]} Bxe7 {[%emt 0:00:06]} 33. Ng2 {[%emt 0:00:35]} Bb5+ {[%emt 0:00:20]} 34. Kd1 {[%emt 0:00:28]} Bg5 {[%emt 0:00:16]} 35. h4 {[%emt 0:00:30]} Bh6 {[%emt 0:00:08]} 36. Nf1 {[%emt 0:00:31]} Rc1# {[%emt 0:00:07]} 1/2-1/2

[Event "Djerba Festival Open-A 2024"]
[Site "Djerba"]
[Date "2024.02.24"]
[Round "8.9"]
[White "Barbaria, Yacine"]
[Black "Egorov, Konstantin"]
[Result "1/2-1/2"]
[ECO "B23"]
[WhiteElo "2206"]
[BlackElo "2118"]
[Annotator "RC"]
[PlyCount "181"]
[EventDate "2024.02.18"]
[EventType "swiss"]
[EventCountry "TUN"]
[SourceTitle "playchess.com"]
[Source "ChessBase"]
[SourceQuality "1"]
[TimeControl "5400+30"]

1. e4 {[%emt 0:08:36]} c5 {[%emt 0:00:09]} 2. Nc3 {[%emt 0:00:04]} g6 {[%emt 0:00:13]} 3. f4 {[%emt 0:00:12]} Bg7 {[%emt 0:00:06]} 4. Nf3 {[%emt 0:00:04]} Nc6 {[%emt 0:00:04]} 5. Bb5 {[%emt 0:00:35]} Nd4 {[%emt 0:01:19]} 6. Bc4 {[%emt 0:00:07]} e6 {[%emt 0:01:32]} 7. d3 {[%emt 0:02:35]} d6 {[%emt 0:03:49]} 8. O-O {[%emt 0:00:58]} Ne7 {[%emt 0:00:06]} 9. a4 {[%emt 0:00:40]} O-O {[%emt 0:00:39]} 10. Ba2 {[%emt 0:00:53]} b6 {[%emt 0:03:29]} 11. Ne2 {[%emt 0:01:26]} Bb7 {[%emt 0:07:06]} 12. Ng3 {[%emt 0:04:48]} Nxf3+ {[%emt 0:07:22]} 13. Qxf3 {[%emt 0:00:06]} Nf5 {[%emt 0:02:01]} 14. c3 {[%emt 0:07:03]} a6 {[%emt 0:03:46]} 15. Ne2 {[%emt 0:07:34]} Ne7 {[%emt 0:09:16]} 16. Qh3 {[%emt 0:00:46]} d5 {[%emt 0:02:22]} 17. f5 {[%emt 0:01:45]} exf5 {[%emt 0:00:48]} 18. exf5 {[%emt 0:00:15]} Nxf5 {[%emt 0:01:15]} 19. Rxf5 {[%emt 0:01:26]} gxf5 {[%emt 0:03:55]} 20. Bd2 {[%emt 0:04:37]} Qe8 {[%emt 0:11:20]} 21. Nf4 {[%emt 0:02:02]} Qxa4 {[%emt 0:03:01]} 22. Qxf5 {[%emt 0:01:23]} Rae8 {[%emt 0:03:37]} 23. d4 {[%emt 0:05:22]} cxd4 {[%emt 0:07:31]} 24. b3 {[%emt 0:01:54]} Qc6 {[%emt 0:03:35]} 25. Bb1 {[%emt 0:02:21]} Re4 {[%emt 0:00:04]} 26. c4 {[%emt 0:03:04]} dxc4 {[%emt 0:03:53]} 27. bxc4 {[%emt 0:02:06]} Rfe8 {[%emt 0:09:13]} 28. Nd5 {[%emt 0:06:08]} Qe6 {[%emt 0:00:44]} 29. Bxe4 {[%emt 0:02:28]} Qxe4 {[%emt 0:01:34]} 30. Re1 {[%emt 0:04:42]} Bxd5 {[%emt 0:01:52]} 31. Rxe4 {[%emt 0:07:46]} Bxe4 {[%emt 0:00:08]} 32. Qd7 {[%emt 0:00:12]} Ra8 {[%emt 0:00:58]} 33. Qe7 {[%emt 0:01:14]} f5 {[%emt 0:08:09]} 34. g4 {[%emt 0:01:03]} Rf8 {[%emt 0:01:49]} 35. Qe6+ {[%emt 0:00:22]} Kh8 {[%emt 0:00:05]} 36. Bb4 {[%emt 0:00:24]} Rg8 {[%emt 0:00:15]} 37. Kf2 {[%emt 0:02:07]} a5 {[%emt 0:00:33]} 38. Bd6 {[%emt 0:00:40]} d3 {[%emt 0:00:40]} 39. Ke3 {[%emt 0:01:23]} Rd8 {[%emt 0:00:28]} 40. gxf5 {[%emt 0:02:24]} d2 {[%emt 0:00:05]} 41. Kxd2 {[%emt 0:03:48]} Bxf5 {[%emt 0:00:03]} 42. Qe7 {[%emt 0:00:24]} Rg8 {[%emt 0:00:43]} 43. Bc7 {[%emt 0:00:43]} Bg6 {[%emt 0:00:59]} 44. Bxb6 {[%emt 0:00:32]} a4 {[%emt 0:00:32]} 45. Qa7 {[%emt 0:01:21]} Be8 {[%emt 0:00:11]} 46. Bd4 {[%emt 0:03:38]} h5 {[%emt 0:00:05]} 47. Kc3 {[%emt 0:00:46]} Bxd4+ {[%emt 0:00:42]} 48. Kxd4 {[%emt 0:00:21]} Rg4+ {[%emt 0:00:47]} 49. Ke5 {[%emt 0:00:54]} Kg8 {[%emt 0:00:41]} 50. Qe7 {[%emt 0:04:08]} Bf7 {[%emt 0:00:40]} 51. Qd8+ {[%emt 0:01:14]} Kg7 {[%emt 0:00:17]} 52. Qf6+ {[%emt 0:00:13]} Kg8 {[%emt 0:00:06]} 53. c5 {[%emt 0:01:11]} a3 {[%emt 0:00:41]} 54. Qd8+ {[%emt 0:02:42]} Kg7 {[%emt 0:00:06]} 55. Qf6+ {[%emt 0:01:17]} Kg8 {[%emt 0:00:06]} 56. Qd8+ {[%emt 0:00:18]} Kh7 {[%emt 0:01:35]} 57. Qd3+ {[%emt 0:00:11]} Kg7 {[%emt 0:01:10]} 58. Qxa3 {[%emt 0:00:09]} Rg6 {[%emt 0:00:40]} 59. Qf3 {[%emt 0:01:46]} Re6+ {[%emt 0:00:15]} 60. Kd4 {[%emt 0:00:15]} Be8 {[%emt 0:00:40]} 61. Qf5 {[%emt 0:00:26]} Rc6 {[%emt 0:00:38]} 62. Kd5 {[%emt 0:00:25]} Rg6 {[%emt 0:00:20]} 63. Qe5+ {[%emt 0:00:37]} Kf8 {[%emt 0:00:08]} 64. h3 {[%emt 0:01:01]} Bf7+ {[%emt 0:00:42]} 65. Kd4 {[%emt 0:00:27]} Be8 {[%emt 0:00:34]} 66. Qf5+ {[%emt 0:00:33]} Bf7 {[%emt 0:00:42]} 67. Qc8+ {[%emt 0:00:31]} Be8 {[%emt 0:00:07]} 68. Qf5+ {[%emt 0:00:12]} Bf7 {[%emt 0:00:04]} 69. Qc8+ {[%emt 0:00:19]} Be8 {[%emt 0:00:04]} 70. Qc7 {[%emt 0:00:46]} Kg8 {[%emt 0:01:49]} 71. Ke5 {[%emt 0:00:38]} Kf8 {[%emt 0:00:31]} 72. Qh7 {[%emt 0:00:30]} Bf7 {[%emt 0:00:01]} 73. Qh8+ {[%emt 0:00:32]} Ke7 {[%emt 0:00:13]} 74. Qc8 {[%emt 0:00:25]} Re6+ {[%emt 0:01:10]} 75. Kd4 {[%emt 0:00:13]} Be8 {[%emt 0:00:17]} 76. Kd5 {[%emt 0:00:34]} Rg6 {[%emt 0:00:27]} 77. Qf5 {[%emt 0:00:53]} Bf7+ {[%emt 0:00:37]} 78. Kd4 {[%emt 0:00:19]} Re6 {[%emt 0:00:32]} 79. Qg5+ {[%emt 0:00:34]} Kd7 {[%emt 0:00:39]} 80. Qh4 {[%emt 0:00:37]} Ke8 {[%emt 0:00:24]} 81. Qf4 {[%emt 0:00:27]} Kf8 {[%emt 0:00:36]} 82. Qb8+ {[%emt 0:00:14]} Be8 {[%emt 0:00:07]} 83. Kd5 {[%emt 0:00:07]} Rg6 {[%emt 0:00:25]} 84. Qd8 {[%emt 0:00:44]} Kf7 {[%emt 0:00:32]} 85. Ke5 {[%emt 0:00:34]} Rc6 {[%emt 0:00:32]} 86. Qd5+ {[%emt 0:00:26]} Kg7 {[%emt 0:00:48]} 87. Qd8 {[%emt 0:00:47]} Kf7 {[%emt 0:00:18]} 88. Kd5 {[%emt 0:00:27]} Rg6 {[%emt 0:00:34]} 89. Qc7+ {[%emt 0:00:10]} Kf8 {[%emt 0:00:09]} 90. Qh7 {[%emt 0:00:19]} Bf7+ {[%emt 0:00:32]} 91. Ke5 {[%emt 0:01:47]} 1/2-1/2

[Event "Djerba Festival Open-A 2024"]
[Site "Djerba"]
[Date "2024.02.25"]
[Round "9.1"]
[White "Abbes, Ali"]
[Black "Defromont, Benjamin"]
[Result "*"]
[ECO "B01"]
[WhiteElo "2218"]
[BlackElo "2423"]
[Annotator "ChessBase"]
[PlyCount "34"]
[EventDate "2024.02.18"]
[EventType "swiss"]
[EventCountry "TUN"]
[SourceTitle "playchess.com"]
[Source "ChessBase"]
[SourceQuality "1"]
[TimeControl "5400+30"]

1. e4 {[%emt 0:04:07]} e5 {[%emt 0:01:08]} 2. d4 {[%emt 1:27:23]} exd4 {[%emt 0:00:05]} 3. c3 {[%emt 1:27:25]} d5 {[%emt 0:02:08]} 4. exd5 {[%emt 0:01:32]} Qxd5 {[%emt 1:29:09]} 5. Nf3 {[%emt 0:00:04]} Nc6 {[%emt 0:06:11]} 6. Be2 {[%emt 0:05:31]} Bg4 {[%emt 0:00:10]} 7. O-O {[%emt 0:01:05]} O-O-O {[%emt 0:00:12]} 8. Nxd4 {[%emt 0:00:25]} Bxe2 {[%emt 0:01:52]} 9. Qxe2 {[%emt 0:00:15]} Nf6 {[%emt 0:12:00]} 10. Be3 {[%emt 0:02:00]} Bc5 {[%emt 0:02:45]} 11. Nxc6 {[%emt 0:20:11]} Qxc6 {[%emt 0:00:30]} 12. Bxc5 {[%emt 0:01:49]} Qxc5 {[%emt 0:00:09]} 13. Na3 {[%emt 0:00:09]} Rhe8 {[%emt 0:01:10]} 14. Qc2 {[%emt 0:04:57]} Ne4 {[%emt 0:03:56]} 15. Rad1 {[%emt 0:02:21]} f5 {[%emt 0:00:26]} 16. Rd3 {[%emt 0:53:26]} Rd7 17. Rxd7 {[%emt 0:00:00]} Rd8 {[%emt 0:03:26]} *